[Event "FRA-ch Universities 2019"]
[Site "Paris"]
[Date "2019.02.02"]
[Round "2"]
[White "Schmuck, Corentin"]
[Black "Eden, James"]
[Result "0-1"]
[ECO "B23"]
[WhiteElo "1984"]
[BlackElo "2338"]
[Annotator "NA RC"]
[PlyCount "127"]
[EventDate "2019.02.01"]
[EventType "swiss"]
[EventCountry "FRA"]
[SourceTitle "playchess.com"]
[Source "ChessBase"]
[SourceQuality "1"]
[TimeControl "900+5"]

1. e4 {[%emt 0:00:00]} c5 {[%emt 0:00:02]} 2. Nc3 {[%emt 0:00:00]} a6 {[%emt 0:00:02]} 3. g3 {[%emt 0:00:01]} b5 {[%emt 0:00:03]} 4. Bg2 {[%emt 0:00:03]} Bb7 {[%emt 0:00:08]} 5. d3 {[%emt 0:00:13]} e6 {[%emt 0:00:05]} 6. Be3 {[%emt 0:00:11] B23: Closed Sicilian: Lines without g3} (6. f4 Nf6 7. Nf3 d6 8. O-O Be7 9. a4 b4 10. Ne2 c4 11. b3 cxd3 12. cxd3 O-O 13. h3 Nc6 14. g4 Nd7 15. g5 {1-0 (51) Duda,J (2717)-Fedorchuk,S (2648) Katowice 2017}) 6... Nf6 {[%emt 0:00:16]} 7. h3 $146 {[%emt 0:00:08]} ({Predecessor:} 7. Qd2 Be7 {½-½ (72) Munoz,L (1884)-Herrera Rodriguez,M (2091) Pamplona 2012}) 7... Be7 {[%emt 0:00:20]} 8. Qd2 {[%emt 0:00:20]} b4 {[%emt 0:00:31]} 9. Nd1 {[%emt 0:00:12]} d5 {[%emt 0:00:11]} 10. exd5 {[%emt 0:02:13]} Bxd5 {[%emt 0:00:19]} 11. Nf3 {[%emt 0:00:24]} Qd7 {[%emt 0:00:36]} ({Predecessor:} 11... Qc7 12. O-O O-O 13. Qe2 c4 {½-½ (72) Munoz,L (1884)-Herrera Rodriguez,M (2091) Pamplona 2012}) 12. O-O {[%emt 0:00:15]} Qb7 {[%emt 0:00:05]} 13. Ne1 {[%emt 0:00:41]} O-O {[%emt 0:00:20]} 14. Bxd5 {[%emt 0:00:11]} Nxd5 {[%emt 0:00:11]} 15. Ng2 {[%emt 0:00:06]} Nc6 {[%emt 0:00:07]} 16. Qe2 {[%emt 0:01:35]} a5 {[%emt 0:00:57]} 17. Nf4 {[%emt 0:02:15]} Nxf4 {[%emt 0:00:55]} 18. Bxf4 {[%emt 0:00:06]} Nd4 {[%emt 0:00:14]} 19. Qe4 {[%emt 0:00:33]} Qxe4 {[%emt 0:00:04]} 20. dxe4 {[%emt 0:00:01]} Nxc2 {[%emt 0:00:04]} 21. Rc1 {[%emt 0:00:06]} Nd4 {[%emt 0:00:02]} 22. Kg2 {[%emt 0:00:17]} g5 {[%emt 0:02:28]} 23. Be3 {[%emt 0:00:57]} Rac8 {[%emt 0:00:21]} 24. b3 {[%emt 0:00:28]} Rfd8 {[%emt 0:00:20]} 25. Nb2 {[%emt 0:00:14]} Ne2 {[%emt 0:00:04]} 26. Rc2 {[%emt 0:00:22]} Nc3 {[%emt 0:00:03]} 27. Nc4 {[%emt 0:00:03]} Nxe4 {[%emt 0:00:37]} 28. Nxa5 {[%emt 0:00:07]} Nc3 {[%emt 0:00:12]} 29. Nc4 {[%emt 0:00:42]} Bf6 {[%emt 0:00:11]} 30. f4 {[%emt 0:00:33]} h6 $17 {[%emt 0:00:31]} 31. g4 {[%emt 0:00:31]} Bd4 {[%emt 0:00:25]} 32. fxg5 {[%emt 0:00:14]} Bxe3 {[%emt 0:00:11]} 33. Nxe3 {[%emt 0:00:02]} hxg5 {[%emt 0:00:05]} 34. Rcf2 {[%emt 0:00:30]} Rc7 {[%emt 0:00:17]} 35. Nc4 {[%emt 0:00:12]} Rd5 {[%emt 0:00:08]} 36. Nb6 {[%emt 0:00:25]} Rd1 {[%emt 0:00:24]} 37. Rxd1 {[%emt 0:00:35]} Nxd1 {[%emt 0:00:03]} 38. Rd2 {[%emt 0:00:03]} Nc3 {[%emt 0:00:06]} 39. Kf3 {[%emt 0:00:09]} Ra7 {[%emt 0:00:05]} 40. Nd7 {[%emt 0:00:12]} Ra5 {[%emt 0:00:34]} 41. Ke3 {[%emt 0:00:52]} Nxa2 {[%emt 0:01:16]} 42. Kd3 {[%emt 0:00:07]} Nc3 {[%emt 0:00:51]} 43. Kc4 {[%emt 0:00:03]} Kg7 {[%emt 0:00:05]} 44. Rf2 {[%emt 0:00:33]} Ne4 {[%emt 0:00:07]} 45. Re2 {[%emt 0:00:05]} Nd6+ {[%emt 0:00:04]} 46. Kd3 {[%emt 0:00:07]} Nb7 {[%emt 0:00:42]} 47. Kc4 {[%emt 0:00:07]} Ra3 {[%emt 0:00:02]} 48. Re5 {[%emt 0:00:22]} Kg6 {[%emt 0:02:22]} 49. Nxc5 {[%emt 0:00:05]} Nd6+ {[%emt 0:00:02]} 50. Kxb4 {[%emt 0:00:07]} Ra2 {[%emt 0:00:01]} 51. Ne4 {[%emt 0:00:17]} Re2 {[%emt 0:00:35]} 52. Rxg5+ {[%emt 0:00:13]} Kh6 {[%emt 0:00:01]} 53. Nxd6 {[%emt 0:00:05]} Kxg5 {[%emt 0:00:02]} 54. Nxf7+ {[%emt 0:00:02]} Kf4 {[%emt 0:00:01]} 55. Kc5 {[%emt 0:00:10]} e5 {[%emt 0:00:03]} 56. b4 {[%emt 0:00:06]} e4 57. Nd6 {[%emt 0:00:07]} e3 {[%emt 0:00:06]} 58. Nf5 {[%emt 0:00:04]} Rc2+ {[%emt 0:00:04]} 59. Kb6 {[%emt 0:00:07]} e2 {[%emt 0:00:02]} 60. Nd4 {[%emt 0:00:01]} e1=Q {[%emt 0:00:08]} 61. Nxc2 {[%emt 0:00:02]} Qc3 {[%emt 0:00:03]} 62. b5 {[%emt 0:00:09]} Qxc2 {[%emt 0:00:02]} 63. Kb7 {[%emt 0:00:07]} Ke5 {[%emt 0:00:03]} 64. b6 {[%emt 0:00:03]} 0-1

[Event "FRA-ch Universities 2019"]
[Site "Paris"]
[Date "2019.02.02"]
[Round "2"]
[White "Noir, Mathys"]
[Black "Fines, Adrien"]
[Result "1-0"]
[ECO "B21"]
[WhiteElo "1889"]
[BlackElo "1756"]
[Annotator "NA RC"]
[PlyCount "59"]
[EventDate "2019.02.01"]
[EventType "swiss"]
[EventCountry "FRA"]
[SourceTitle "playchess.com"]
[Source "ChessBase"]
[SourceQuality "1"]
[TimeControl "900+5"]

1. e4 {[%emt 0:00:00]} c5 {[%emt 0:00:00]} 2. d4 {[%emt 0:00:03]} cxd4 {[%emt 0:00:04]} 3. c3 {[%emt 0:00:03]} Nf6 {[%emt 0:00:16]} 4. e5 {[%emt 0:00:05]} Nd5 {[%emt 0:00:01]} 5. Qxd4 {[%emt 0:00:05]} Nc7 {[%emt 0:00:28]} 6. Nf3 {[%emt 0:01:08]} Nc6 {[%emt 0:00:02]} 7. Qe4 {[%emt 0:00:08]} g6 {[%emt 0:00:18]} 8. Bc4 {[%emt 0:00:54]} Bg7 {[%emt 0:01:54]} 9. h4 {[%emt 0:01:21]} d5 {[%emt 0:00:46]} 10. exd6 {[%emt 0:00:08]} Qxd6 {[%emt 0:00:02]} 11. O-O {[%emt 0:01:23]} Bf5 {[%emt 0:00:08]} 12. Qe2 {[%emt 0:00:07]} O-O-O {[%emt 0:01:12]} 13. Ng5 {[%emt 0:01:31]} b5 {[%emt 0:06:00]} 14. Nxf7 {[%emt 0:02:50]} Qc5 {[%emt 0:00:09]} 15. Nxd8 {[%emt 0:00:20]} Rxd8 {[%emt 0:00:05]} 16. g4 {[%emt 0:00:40]} bxc4 {[%emt 0:02:36]} 17. gxf5 {[%emt 0:00:06]} Qxf5 {[%emt 0:00:04]} 18. Nd2 {[%emt 0:00:55]} Ne5 {[%emt 0:00:33]} 19. f4 {[%emt 0:01:44]} Nd3 {[%emt 0:00:37]} 20. Nxc4 {[%emt 0:00:51]} Qc5+ {[%emt 0:00:01]} 21. Ne3 {[%emt 0:00:02]} Ne6 {[%emt 0:00:33]} 22. Qg4 {[%emt 0:00:31]} Rd6 {[%emt 0:00:30]} 23. f5 {[%emt 0:00:01]} Nxc1 {[%emt 0:00:09]} 24. Raxc1 {[%emt 0:00:22]} Qxe3+ {[%emt 0:00:01]} 25. Kh1 {[%emt 0:00:04]} Nc5 {[%emt 0:00:22]} 26. f6+ {[%emt 0:00:01]} Kc7 {[%emt 0:00:10]} 27. fxg7 {[%emt 0:00:02]} Ne4 {[%emt 0:00:05]} 28. g8=Q {[%emt 0:00:25]} Nf2+ {[%emt 0:00:02]} 29. Rxf2 {[%emt 0:00:05]} Qxc1+ {[%emt 0:00:02]} 30. Kg2 {[%emt 0:00:03]} 1-0

[Event "FRA-ch Universities 2019"]
[Site "Paris"]
[Date "2019.02.02"]
[Round "3"]
[White "Eden, James"]
[Black "Albaric, Etienne"]
[Result "1-0"]
[ECO "A45"]
[WhiteElo "2338"]
[BlackElo "2249"]
[Annotator "NA RC"]
[PlyCount "79"]
[EventDate "2019.02.01"]
[EventType "swiss"]
[EventCountry "FRA"]
[SourceTitle "playchess.com"]
[Source "ChessBase"]
[SourceQuality "1"]
[TimeControl "900+5"]

1. d4 {[%emt 0:01:00]} Nf6 {[%emt 0:00:00]} 2. Bf4 {[%emt 0:00:02]} e6 {[%emt 0:00:01]} 3. e3 {[%emt 0:00:06]} c5 {[%emt 0:00:05]} 4. c3 {[%emt 0:00:03]} Nc6 {[%emt 0:00:23]} 5. Nd2 {[%emt 0:00:14]} Be7 {[%emt 0:00:20]} 6. h3 {[%emt 0:00:26]} b6 {[%emt 0:00:21]} 7. Ngf3 {[%emt 0:00:11]} O-O {[%emt 0:00:28]} 8. Bd3 {[%emt 0:00:17]} cxd4 {[%emt 0:00:26]} 9. exd4 {[%emt 0:00:16]} d6 {[%emt 0:00:23]} 10. O-O {[%emt 0:00:13]} Bb7 {[%emt 0:00:29]} 11. Qe2 {[%emt 0:00:08]} Re8 {[%emt 0:00:48]} 12. Rfe1 {[%emt 0:00:39]} Bf8 {[%emt 0:00:52]} 13. Ba6 {[%emt 0:00:26]} Qc8 {[%emt 0:01:09]} 14. Bxb7 {[%emt 0:00:14]} Qxb7 {[%emt 0:00:02]} 15. Ne4 {[%emt 0:00:24]} Nxe4 {[%emt 0:00:48]} 16. Qxe4 {[%emt 0:00:03]} d5 {[%emt 0:00:51]} 17. Qd3 {[%emt 0:00:09]} h6 {[%emt 0:00:48]} 18. g4 {[%emt 0:00:15]} Be7 {[%emt 0:02:26]} 19. Kh1 {[%emt 0:01:14]} Qd7 {[%emt 0:00:33]} 20. Rg1 {[%emt 0:00:45]} Bd6 {[%emt 0:01:15]} 21. Ne5 {[%emt 0:00:30]} Bxe5 {[%emt 0:00:12]} 22. dxe5 {[%emt 0:00:38]} d4 {[%emt 0:00:12]} 23. g5 {[%emt 0:00:06]} Qd5+ {[%emt 0:00:45]} 24. f3 {[%emt 0:00:44]} g6 {[%emt 0:00:48]} 25. gxh6 {[%emt 0:00:30]} Nxe5 {[%emt 0:00:32]} 26. Qe4 {[%emt 0:03:22]} Qxe4 {[%emt 0:00:34]} 27. fxe4 {[%emt 0:00:02]} Nd3 {[%emt 0:00:15]} 28. Bg3 {[%emt 0:00:28]} dxc3 {[%emt 0:00:11]} 29. bxc3 {[%emt 0:00:02]} Rac8 {[%emt 0:00:06]} 30. Rad1 {[%emt 0:00:17]} Rxc3 {[%emt 0:00:18]} 31. Rd2 {[%emt 0:00:02]} Nc5 {[%emt 0:00:25]} 32. Re2 {[%emt 0:00:23]} Kh7 {[%emt 0:00:08]} 33. h4 {[%emt 0:00:05]} Rd8 34. h5 {[%emt 0:00:09]} Rdd3 {[%emt 0:00:21]} 35. hxg6+ {[%emt 0:00:09]} fxg6 {[%emt 0:00:02]} 36. Be5 {[%emt 0:00:13]} Re3 {[%emt 0:00:19]} 37. Rf2 {[%emt 0:00:08]} Rf3 {[%emt 0:00:03]} 38. Rgf1 {[%emt 0:01:01]} Rxf2 {[%emt 0:00:09]} 39. Rxf2 {[%emt 0:00:02]} Re3 {[%emt 0:00:10]} 40. Rf7+ {[%emt 0:00:03]} 1-0

[Event "FRA-ch Universities 2019"]
[Site "Paris"]
[Date "2019.02.02"]
[Round "3"]
[White "Guillemart, Serge"]
[Black "Noir, Mathys"]
[Result "0-1"]
[ECO "C00"]
[WhiteElo "2023"]
[BlackElo "1889"]
[Annotator "NA RC"]
[PlyCount "84"]
[EventDate "2019.02.01"]
[EventType "swiss"]
[EventCountry "FRA"]
[SourceTitle "playchess.com"]
[Source "ChessBase"]
[SourceQuality "1"]
[TimeControl "900+5"]

1. e4 {[%emt 0:00:00]} e6 {[%emt 0:00:00]} 2. Qe2 {[%emt 0:00:00]} e5 {[%emt 0:00:07]} 3. Nf3 {[%emt 0:00:03]} Nc6 {[%emt 0:00:06]} 4. g3 {[%emt 0:00:03]} Bc5 {[%emt 0:00:06]} 5. Bg2 {[%emt 0:00:07]} d6 {[%emt 0:00:11]} 6. O-O {[%emt 0:00:04]} Bg4 {[%emt 0:00:18]} 7. c3 {[%emt 0:00:03]} Nf6 {[%emt 0:00:17]} 8. d3 {[%emt 0:00:04]} Qd7 {[%emt 0:00:41]} 9. Rd1 {[%emt 0:00:10]} h5 {[%emt 0:00:52]} 10. Bg5 {[%emt 0:00:07]} h4 {[%emt 0:01:42]} 11. Bxh4 {[%emt 0:00:30]} Rxh4 {[%emt 0:00:15]} 12. gxh4 {[%emt 0:00:01]} Bh3 {[%emt 0:00:09]} 13. Ng5 {[%emt 0:00:16]} Bxg2 {[%emt 0:00:34]} 14. Kxg2 {[%emt 0:00:03]} O-O-O {[%emt 0:01:01]} 15. Qf3 {[%emt 0:00:03]} g6 {[%emt 0:02:56]} 16. b4 {[%emt 0:00:39]} Bb6 {[%emt 0:01:06]} 17. h3 {[%emt 0:00:18]} Nh5 {[%emt 0:00:19]} 18. Qxf7 {[%emt 0:00:45]} Qxf7 {[%emt 0:00:14]} 19. Nxf7 {[%emt 0:00:05]} Rf8 {[%emt 0:00:06]} 20. Nxd6+ {[%emt 0:00:33]} cxd6 {[%emt 0:00:09]} 21. Rd2 {[%emt 0:00:17]} Nf4+ {[%emt 0:00:42]} 22. Kh2 {[%emt 0:00:02]} Rh8 {[%emt 0:00:42]} 23. Kg3 {[%emt 0:00:25]} Bd8 {[%emt 0:00:08]} 24. Na3 {[%emt 0:00:22]} Bxh4+ {[%emt 0:00:19]} 25. Kf3 {[%emt 0:00:05]} Bg5 {[%emt 0:00:40]} 26. Rg1 {[%emt 0:00:29]} Nxh3 {[%emt 0:00:08]} 27. Rxg5 {[%emt 0:00:02]} Nxg5+ {[%emt 0:00:02]} 28. Kg4 {[%emt 0:00:01]} Ne6 {[%emt 0:00:05]} 29. Nc4 {[%emt 0:00:06]} Kc7 {[%emt 0:00:07]} 30. b5 {[%emt 0:00:04]} Ne7 {[%emt 0:00:25]} 31. d4 {[%emt 0:00:03]} exd4 {[%emt 0:00:03]} 32. cxd4 {[%emt 0:00:03]} Rf8 {[%emt 0:00:03]} 33. f3 {[%emt 0:00:13]} d5 {[%emt 0:00:28]} 34. Ne5 {[%emt 0:00:19]} Rf4+ {[%emt 0:01:00]} 35. Kg3 {[%emt 0:00:06]} dxe4 {[%emt 0:00:02]} 36. d5 {[%emt 0:00:10]} Kd6 {[%emt 0:00:24]} 37. Nc4+ {[%emt 0:00:05]} Kc5 {[%emt 0:00:00]} 38. d6 {[%emt 0:00:23]} Nf5+ {[%emt 0:00:08]} 39. Kh2 {[%emt 0:00:10]} Kxc4 {[%emt 0:00:07]} 40. fxe4 {[%emt 0:00:08]} Rxe4 {[%emt 0:00:07]} 41. d7 {[%emt 0:00:04]} Rd4 {[%emt 0:00:03]} 42. Rxd4+ {[%emt 0:00:06]} Nfxd4 {[%emt 0:00:01]} 0-1

[Event "FRA-ch Universities 2019"]
[Site "Paris"]
[Date "2019.02.02"]
[Round "3"]
[White "Brunier, Jules"]
[Black "Deltour, Quentin"]
[Result "1/2-1/2"]
[ECO "B92"]
[WhiteElo "2015"]
[BlackElo "1968"]
[Annotator "NA RC"]
[PlyCount "108"]
[EventDate "2019.02.01"]
[EventType "swiss"]
[EventCountry "FRA"]
[SourceTitle "playchess.com"]
[Source "ChessBase"]
[SourceQuality "1"]
[TimeControl "900+5"]

1. e4 {[%emt 0:00:00]} c5 {[%emt 0:00:00]} 2. Nf3 {[%emt 0:00:02]} d6 {[%emt 0:00:00]} 3. d4 {[%emt 0:00:03]} cxd4 {[%emt 0:00:00]} 4. Nxd4 {[%emt 0:00:03]} Nf6 {[%emt 0:00:02]} 5. Nc3 {[%emt 0:00:41]} a6 {[%emt 0:00:03]} 6. Be2 {[%emt 0:00:05]} e5 {[%emt 0:00:02]} 7. Nb3 {[%emt 0:00:03]} Be7 {[%emt 0:00:06]} 8. O-O {[%emt 0:00:04]} O-O {[%emt 0:00:02]} 9. Kh1 {[%emt 0:00:19]} b5 {[%emt 0:00:33]} 10. a3 {[%emt 0:00:04]} Bb7 {[%emt 0:00:03]} 11. Bf3 {[%emt 0:00:04]} Nbd7 {[%emt 0:00:16]} 12. g3 {[%emt 0:00:16]} Rc8 {[%emt 0:00:10]} 13. Bg2 {[%emt 0:00:08]} Qb6 {[%emt 0:05:02]} 14. Be3 {[%emt 0:00:27]} Qc7 {[%emt 0:00:02]} 15. f4 {[%emt 0:00:20]} Nb6 {[%emt 0:00:03]} 16. fxe5 {[%emt 0:02:15]} dxe5 {[%emt 0:00:03]} 17. Bg5 {[%emt 0:00:02]} Nc4 {[%emt 0:00:50]} 18. Qc1 {[%emt 0:00:46]} Nxb2 {[%emt 0:01:08]} 19. Bxf6 {[%emt 0:05:56]} Bxf6 {[%emt 0:00:02]} 20. Nd5 {[%emt 0:01:09]} Bxd5 {[%emt 0:00:19]} 21. exd5 {[%emt 0:00:01]} Qxc2 {[%emt 0:00:09]} 22. Na5 {[%emt 0:00:27]} Qxc1 {[%emt 0:02:37]} 23. Raxc1 {[%emt 0:00:03]} Nc4 {[%emt 0:01:40]} 24. Nxc4 {[%emt 0:00:33]} Rxc4 {[%emt 0:00:02]} 25. Rxc4 {[%emt 0:00:08]} bxc4 {[%emt 0:00:01]} 26. Rc1 {[%emt 0:00:08]} Rc8 {[%emt 0:00:02]} 27. d6 {[%emt 0:00:48]} c3 {[%emt 0:00:44]} 28. Bh3 {[%emt 0:00:43]} Rc6 {[%emt 0:01:20]} 29. d7 {[%emt 0:00:05]} c2 {[%emt 0:00:52]} 30. Bf5 {[%emt 0:00:10]} Kf8 {[%emt 0:00:45]} 31. Rxc2 {[%emt 0:00:04]} Rxc2 {[%emt 0:00:05]} 32. Bxc2 {[%emt 0:00:01]} Ke7 {[%emt 0:00:02]} 33. Bf5 {[%emt 0:00:15]} g6 {[%emt 0:00:02]} 34. Bh3 {[%emt 0:00:02]} Bg5 {[%emt 0:00:04]} 35. Kg2 {[%emt 0:00:02]} f5 {[%emt 0:00:02]} 36. g4 {[%emt 0:00:20]} f4 {[%emt 0:00:16]} 37. Kf3 {[%emt 0:00:02]} Kxd7 {[%emt 0:00:02]} 38. Bf1 {[%emt 0:00:03]} a5 {[%emt 0:00:02]} 39. Ke4 {[%emt 0:00:03]} Kd6 {[%emt 0:00:02]} 40. Bc4 {[%emt 0:00:06]} Bf6 {[%emt 0:00:31]} 41. Bf7 {[%emt 0:00:35]} Kc5 {[%emt 0:00:10]} 42. a4 {[%emt 0:00:19]} Kd6 {[%emt 0:00:04]} 43. Be8 {[%emt 0:00:03]} Ke7 {[%emt 0:00:03]} 44. Bb5 {[%emt 0:00:03]} Kd6 {[%emt 0:00:08]} 45. Be8 {[%emt 0:00:12]} Bh4 {[%emt 0:00:06]} 46. Bf7 {[%emt 0:00:08]} Bf6 {[%emt 0:00:04]} 47. Bg8 {[%emt 0:00:04]} h6 {[%emt 0:00:04]} 48. Bf7 {[%emt 0:00:04]} g5 {[%emt 0:00:03]} 49. Bc4 {[%emt 0:00:11]} Kc5 {[%emt 0:00:02]} 50. Bb5 {[%emt 0:00:04]} Kd6 {[%emt 0:00:12]} 51. Bc4 {[%emt 0:00:18]} Kc5 {[%emt 0:00:04]} 52. Bb5 {[%emt 0:00:02]} Kd6 {[%emt 0:00:06]} 53. Bc4 {[%emt 0:00:03]} Kc5 54. Bb5 {Kd4+ Kf5 e4 Kxf6} f3 {Kg6 h5 Kh6} 1/2-1/2

[Event "FRA-ch Universities 2019"]
[Site "Paris"]
[Date "2019.02.02"]
[Round "3"]
[White "Mugil, Jayavel"]
[Black "Dumas, Charles"]
[Result "1/2-1/2"]
[ECO "B30"]
[WhiteElo "2001"]
[BlackElo "2218"]
[Annotator "NA RC"]
[PlyCount "123"]
[EventDate "2019.02.01"]
[EventType "swiss"]
[EventCountry "FRA"]
[SourceTitle "playchess.com"]
[Source "ChessBase"]
[SourceQuality "1"]
[TimeControl "900+5"]

1. e4 {[%emt 0:01:08]} c5 {[%emt 0:00:00]} 2. Nf3 {[%emt 0:00:01]} Nc6 {[%emt 0:00:00]} 3. Bb5 {[%emt 0:00:03]} Qb6 {[%emt 0:00:00]} 4. Nc3 {[%emt 0:00:06]} e6 {[%emt 0:00:00]} 5. O-O {[%emt 0:00:04]} Nge7 {[%emt 0:00:00]} 6. d3 {[%emt 0:00:08]} a6 {[%emt 0:00:08]} 7. Bxc6 {[%emt 0:00:13]} Nxc6 {[%emt 0:00:09]} 8. Bd2 {[%emt 0:00:31]} Be7 {[%emt 0:00:11]} 9. a4 {[%emt 0:00:24]} O-O {[%emt 0:00:06]} 10. a5 {[%emt 0:00:22]} Nxa5 {[%emt 0:02:59]} 11. Na4 {[%emt 0:00:46]} Qc7 {[%emt 0:00:13]} 12. Nxc5 {[%emt 0:00:06]} Bxc5 {[%emt 0:00:10]} 13. Bxa5 {[%emt 0:00:02]} b6 {[%emt 0:00:33]} 14. Bc3 {[%emt 0:00:05]} f5 {[%emt 0:00:37]} 15. d4 {[%emt 0:03:27]} Be7 {[%emt 0:00:47]} 16. Nd2 {[%emt 0:01:25]} Bb7 {[%emt 0:00:07]} 17. f3 {[%emt 0:00:06]} Bg5 {[%emt 0:00:24]} 18. Re1 {[%emt 0:00:55]} Rf7 {[%emt 0:00:28]} 19. Nf1 {[%emt 0:00:33]} fxe4 {[%emt 0:00:44]} 20. fxe4 {[%emt 0:00:03]} Raf8 {[%emt 0:00:03]} 21. Qg4 {[%emt 0:00:33]} Qf4 {[%emt 0:00:50]} 22. Qxf4 {[%emt 0:00:14]} Rxf4 {[%emt 0:00:01]} 23. Ng3 {[%emt 0:00:08]} Rf2 {[%emt 0:00:24]} 24. Rf1 {[%emt 0:01:49]} Rxc2 {[%emt 0:00:07]} 25. Rxf8+ {[%emt 0:00:01]} Kxf8 {[%emt 0:00:01]} 26. Rf1+ {[%emt 0:00:01]} Ke8 {[%emt 0:00:24]} 27. d5 {[%emt 0:00:44]} exd5 {[%emt 0:00:26]} 28. Bxg7 {[%emt 0:00:06]} Rc1 {[%emt 0:01:36]} 29. Nf5 {[%emt 0:00:27]} Rxf1+ {[%emt 0:00:40]} 30. Kxf1 {[%emt 0:00:01]} Bf4 {[%emt 0:00:10]} 31. g3 {[%emt 0:00:05]} Bc7 {[%emt 0:00:03]} 32. e5 {[%emt 0:00:07]} Kf7 {[%emt 0:00:14]} 33. Ke2 {[%emt 0:00:03]} Bc6 {[%emt 0:01:12]} 34. Kd3 {[%emt 0:00:05]} b5 {[%emt 0:00:49]} 35. Bh8 {[%emt 0:00:11]} Bb6 36. Nd4 {[%emt 0:00:10]} Bc5 {[%emt 0:00:52]} 37. g4 {[%emt 0:00:37]} Bb7 {[%emt 0:00:03]} 38. h4 {[%emt 0:00:13]} Bc8 {[%emt 0:00:14]} 39. Nf5 {[%emt 0:00:05]} d6 {[%emt 0:00:56]} 40. Nxd6+ {[%emt 0:00:41]} Bxd6 {[%emt 0:00:01]} 41. exd6 {[%emt 0:00:00]} Ke6 {[%emt 0:00:26]} 42. Bc3 {[%emt 0:00:10]} Kxd6 {[%emt 0:00:02]} 43. g5 {[%emt 0:00:01]} Kc5 {[%emt 0:00:57]} 44. b4+ {[%emt 0:00:01]} Kd6 {[%emt 0:00:02]} 45. Kd4 {[%emt 0:00:01]} Bf5 {[%emt 0:00:03]} 46. h5 {[%emt 0:00:24]} Bb1 {[%emt 0:00:17]} 47. Bd2 {[%emt 0:00:01]} Bc2 {[%emt 0:00:03]} 48. Bf4+ {[%emt 0:00:01]} Ke6 {[%emt 0:00:09]} 49. Kc5 {[%emt 0:00:10]} Kf5 {[%emt 0:00:11]} 50. g6 {[%emt 0:00:00]} Kf6 {[%emt 0:00:09]} 51. Be5+ {[%emt 0:00:10]} Ke7 {[%emt 0:00:03]} 52. g7 {[%emt 0:00:02]} Kf7 {[%emt 0:00:02]} 53. Kxd5 {[%emt 0:00:02]} h6 {[%emt 0:00:07]} 54. Kc6 {[%emt 0:00:14]} Bd1 {[%emt 0:00:00]} 55. Kb6 {[%emt 0:00:04]} Bxh5 {[%emt 0:00:02]} 56. Kxa6 {[%emt 0:00:01]} Be2 {[%emt 0:00:01]} 57. Kb6 {[%emt 0:00:04]} h5 {[%emt 0:00:05]} 58. Kc5 {[%emt 0:00:03]} h4 {[%emt 0:00:01]} 59. Kd4 {[%emt 0:00:02]} Bc4 {[%emt 0:00:21]} 60. Ke3 {[%emt 0:00:03]} Kg6 {[%emt 0:00:04]} 61. Kf4 {[%emt 0:00:06]} Be6 {[%emt 0:00:04]} 62. Ke4 1/2-1/2

[Event "FRA-ch Universities 2019"]
[Site "Paris"]
[Date "2019.02.02"]
[Round "3"]
[White "Brison, Lucas"]
[Black "Brethes, Francois"]
[Result "0-1"]
[ECO "E19"]
[WhiteElo "1900"]
[BlackElo "2267"]
[Annotator "NA RC"]
[PlyCount "60"]
[EventDate "2019.02.01"]
[EventType "swiss"]
[EventCountry "FRA"]
[SourceTitle "playchess.com"]
[Source "ChessBase"]
[SourceQuality "1"]
[TimeControl "900+5"]

1. c4 {[%emt 0:00:00]} Nf6 2. Nf3 e6 {[%emt 0:00:10]} 3. g3 {[%emt 0:00:00]} a6 {[%emt 0:00:00]} 4. Bg2 {[%emt 0:00:00]} b5 {[%emt 0:00:01]} 5. b3 {[%emt 0:00:14]} Bb7 {[%emt 0:00:10]} 6. O-O {[%emt 0:00:02]} c5 {[%emt 0:00:35]} 7. Bb2 {[%emt 0:00:07]} Be7 {[%emt 0:00:02]} 8. d4 {[%emt 0:00:14]} cxd4 {[%emt 0:00:17]} 9. cxb5 {[%emt 0:00:06]} axb5 {[%emt 0:00:09]} 10. Nxd4 {[%emt 0:00:01]} Bxg2 {[%emt 0:00:12]} 11. Kxg2 {[%emt 0:00:02]} b4 {[%emt 0:00:35]} 12. a3 {[%emt 0:00:53]} bxa3 {[%emt 0:00:54]} 13. Nxa3 {[%emt 0:00:46]} O-O {[%emt 0:01:30]} 14. Nc4 {[%emt 0:00:20]} Na6 {[%emt 0:00:18]} 15. f3 {[%emt 0:01:32]} Nb4 {[%emt 0:01:34]} 16. Qd2 {[%emt 0:00:49]} d5 {[%emt 0:01:06]} 17. Ne5 {[%emt 0:01:29]} Qc7 {[%emt 0:00:02]} 18. Nd3 {[%emt 0:02:18]} Qb7 {[%emt 0:00:05]} 19. Bc3 {[%emt 0:02:12]} Nxd3 {[%emt 0:00:30]} 20. Qxd3 {[%emt 0:00:01]} Rfe8 {[%emt 0:02:13]} 21. Rfb1 {[%emt 0:01:03]} e5 {[%emt 0:00:39]} 22. Nf5 {[%emt 0:00:02]} Bf8 {[%emt 0:00:13]} 23. Qd2 {[%emt 0:01:18]} d4 {[%emt 0:00:43]} 24. Rxa8 {[%emt 0:00:54]} Rxa8 {[%emt 0:00:19]} 25. Ba1 {[%emt 0:00:48]} g6 {[%emt 0:01:12]} 26. Nh6+ {[%emt 0:00:51]} Bxh6 {[%emt 0:00:03]} 27. Qxh6 {[%emt 0:00:01]} Ra2 {[%emt 0:01:01]} 28. Qg5 {[%emt 0:00:36]} Qb5 {[%emt 0:00:20]} 29. Bb2 {[%emt 0:00:28]} Qxe2+ {[%emt 0:00:12]} 30. Kh3 {[%emt 0:00:03]} Kg7 {[%emt 0:00:19]} 0-1